Workbook

Sheet Лист1
E13: Наименьшее значение для отбраковки | F13: Наибольшее значение для отбраковки | G13: № | H13: 1 | I13: 2 | J13: 3 | K13: 4 | L13: 5 | M13: 6 | N13: 7 | O13: 8 | P13: 9 | Q13: 10 | R13: 11 | S13: 12 | T13: 13 | U13: 14 | V13: 15 | W13: max | X13: min | Y13: Среднее значение по склерометру | Z13: Разделение на группы | AA13: Разрушающая нагрузга Пресс в КН Значение ПИБ в КН | AB13: Показания Riф (Мпа) | AC13: До отбраковки RiH | AD13: После отбраковки RiH | AE13: До отбраковки RiH-Riф/Sт | AF13: После отбраковки RiH-Riф/Sт | AG13: Примечание
E14: =IFERROR(IF(W14>4,LARGE(H14:V14,1),""),"") ->  | F14: =IFERROR(IF(X14>4,SMALL(H14:V14,1),""),"") ->  | G14: =ROW()-ROW(Расчет[[#Headers],[№]]) -> 1 | H14: 32 | I14: 34 | J14: 32 | K14: 32 | L14: 32 | M14: 30 | N14: 32 | O14: 36 | Q14: 32 | R14: 32 | S14: 34 | T14: 34 | U14: 36 | W14: =IFERROR(MAX(H14:V14)-AVERAGE(H14:V14),"") -> 3.076923077 | X14: =IFERROR(AVERAGE(H14:V14)-MIN(H14:V14),"") -> 2.923076923 | Y14: =IFERROR(AVERAGE(H14:V14),"") -> 32.92307692 | Z14: =IF(Y14="","",IF(Y14<=$W$14,1,2)) -> 2 | AA14: 361.9 | AB14: =IF(Расчет[[#This Row],[Разрушающая нагрузга Пресс в КН Значение ПИБ в КН]]="","",((Расчет[[#This Row],[Разрушающая нагрузга Пресс в КН Значение ПИБ в КН]]*10)/100)*0.95) -> 34.3805 | AC14: =IFERROR($AL$16*Y14+($AK$18),"") -> 0 | AD14: =IF(AG14="Отбраковывается","",IFERROR($AU$16*Y14+($AT$18),"")) -> 0 | AE14: 45 | AF14: =IF(AD14="","",(AD14-AB14)/SQRT(SUM($AW$17:$AW$49)/(COUNT($AW$17:$AW$49)-2))) -> 
E15: =IFERROR(IF(W15>4,LARGE(H15:V15,1),""),"") ->  | F15: =IFERROR(IF(X15>4,SMALL(H15:V15,1),""),"") ->  | G15: =ROW()-ROW(Расчет[[#Headers],[№]]) -> 2 | H15: 30 | I15: 34 | J15: 32 | K15: 32 | L15: 32 | M15: 32 | N15: 34 | O15: 30 | P15: 34 | Q15: 36 | R15: 32 | S15: 32 | T15: 30 | U15: 34 | W15: =IFERROR(MAX(H15:V15)-AVERAGE(H15:V15),"") -> 3.571428571 | X15: =IFERROR(AVERAGE(H15:V15)-MIN(H15:V15),"") -> 2.428571429 | Y15: =IFERROR(AVERAGE(H15:V15),"") -> 32.42857143 | Z15: 2 | AA15: 397.2 | AB15: =IF(Расчет[[#This Row],[Разрушающая нагрузга Пресс в КН Значение ПИБ в КН]]="","",((Расчет[[#This Row],[Разрушающая нагрузга Пресс в КН Значение ПИБ в КН]]*10)/100)*0.95) -> 37.734 | AC15: =IFERROR($AL$16*Y15+($AK$18),"") -> 0 | AD15: =IF(AG15="Отбраковывается","",IFERROR($AU$16*Y15+($AT$18),"")) -> 0 | AE15: =IF(AC15="","",(AC15-AB15)/SQRT(SUM($AN$17:$AN$49)/(COUNT($AN$17:$AN$49)-2))) -> 
G16: =ROW()-ROW(Расчет[[#Headers],[№]]) -> 3 | H16: 32 | I16: 32 | J16: 32 | K16: 36 | L16: 32 | M16: 34 | N16: 30 | O16: 34 | P16: 32 | Q16: 30 | R16: 32 | S16: 32 | T16: 32 | U16: 32 | W16: 3.714285714 | X16: 2.285714286 | Y16: 32.28571429 | Z16: 2 | AA16: 357.2 | AB16: =IF(Расчет[[#This Row],[Разрушающая нагрузга Пресс в КН Значение ПИБ в КН]]="","",((Расчет[[#This Row],[Разрушающая нагрузга Пресс в КН Значение ПИБ в КН]]*10)/100)*0.95) -> 33.934 | AC16: 0 | AD16: 0 | AE16: 15
G17: =ROW()-ROW(Расчет[[#Headers],[№]]) -> 4 | H17: 32 | I17: 30 | J17: 28 | K17: 28 | L17: 28 | M17: 34 | N17: 32 | O17: 32 | P17: 30 | Q17: 32 | R17: 34 | S17: 34 | U17: 30 | W17: 2.923076923 | X17: 3.076923077 | Y17: 31.07692308 | Z17: 2 | AA17: 398.2 | AB17: =IF(Расчет[[#This Row],[Разрушающая нагрузга Пресс в КН Значение ПИБ в КН]]="","",((Расчет[[#This Row],[Разрушающая нагрузга Пресс в КН Значение ПИБ в КН]]*10)/100)*0.95) -> 37.829 | AC17: 0 | AD17: 0
G18: =ROW()-ROW(Расчет[[#Headers],[№]]) -> 5 | H18: 30 | L18: 30 | M18: 30 | N18: 34 | O18: 28 | P18: 30 | Q18: 30 | R18: 32 | S18: 32 | T18: 30 | U18: 28 | W18: 3.636363636 | X18: 2.363636364 | Y18: 30.36363636 | Z18: 2 | AA18: 389 | AB18: =IF(Расчет[[#This Row],[Разрушающая нагрузга Пресс в КН Значение ПИБ в КН]]="","",((Расчет[[#This Row],[Разрушающая нагрузга Пресс в КН Значение ПИБ в КН]]*10)/100)*0.95) -> 36.955 | AC18: 0 | AD18: 0
G19: =ROW()-ROW(Расчет[[#Headers],[№]]) -> 6 | H19: 34 | I19: 32 | J19: 32 | K19: 32 | L19: 32 | N19: 36 | O19: 38 | P19: 32 | Q19: 36 | R19: 36 | S19: 32 | T19: 34 | U19: 36 | W19: 4 | X19: 2 | Y19: 34 | Z19: 2 | AA19: 356.1 | AB19: =IF(Расчет[[#This Row],[Разрушающая нагрузга Пресс в КН Значение ПИБ в КН]]="","",((Расчет[[#This Row],[Разрушающая нагрузга Пресс в КН Значение ПИБ в КН]]*10)/100)*0.95) -> 33.8295 | AC19: 0 | AD19: 0 | AE19: 1456
G20: =ROW()-ROW(Расчет[[#Headers],[№]]) -> 7 | H20: 38 | I20: 34 | K20: 40 | L20: 38 | M20: 36 | N20: 38 | O20: 38 | P20: 36 | Q20: 36 | R20: 38 | S20: 38 | T20: 38 | W20: 2.666666667 | X20: 3.333333333 | Y20: 37.33333333 | Z20: 2 | AA20: 489.7 | AB20: =IF(Расчет[[#This Row],[Разрушающая нагрузга Пресс в КН Значение ПИБ в КН]]="","",((Расчет[[#This Row],[Разрушающая нагрузга Пресс в КН Значение ПИБ в КН]]*10)/100)*0.95) -> 46.5215 | AC20: 0 | AD20: 0
G21: =ROW()-ROW(Расчет[[#Headers],[№]]) -> 8 | I21: 38 | J21: 44 | L21: 38 | N21: 44 | O21: 42 | P21: 40 | R21: 36 | T21: 36 | U21: 42 | W21: 4 | X21: 4 | Y21: 40 | Z21: 2 | AA21: 421.2 | AB21: =IF(Расчет[[#This Row],[Разрушающая нагрузга Пресс в КН Значение ПИБ в КН]]="","",((Расчет[[#This Row],[Разрушающая нагрузга Пресс в КН Значение ПИБ в КН]]*10)/100)*0.95) -> 40.014 | AC21: 0 | AD21: 0 | AE21: 156
G22: =ROW()-ROW(Расчет[[#Headers],[№]]) -> 9 | I22: 34 | K22: 36 | L22: 36 | M22: 40 | N22: 38 | O22: 34 | P22: 36 | R22: 38 | S22: 40 | T22: 36 | W22: 3.2 | X22: 2.8 | Y22: 36.8 | Z22: 2 | AA22: 459.2 | AB22: =IF(Расчет[[#This Row],[Разрушающая нагрузга Пресс в КН Значение ПИБ в КН]]="","",((Расчет[[#This Row],[Разрушающая нагрузга Пресс в КН Значение ПИБ в КН]]*10)/100)*0.95) -> 43.624 | AC22: 0 | AD22: 0
G23: =ROW()-ROW(Расчет[[#Headers],[№]]) -> 10 | H23: 38 | I23: 36 | J23: 36 | K23: 34 | L23: 34 | M23: 36 | O23: 38 | P23: 34 | Q23: 34 | R23: 38 | S23: 38 | T23: 38 | U23: 34 | W23: 2 | X23: 2 | Y23: 36 | Z23: 2 | AA23: 526.9 | AB23: =IF(Расчет[[#This Row],[Разрушающая нагрузга Пресс в КН Значение ПИБ в КН]]="","",((Расчет[[#This Row],[Разрушающая нагрузга Пресс в КН Значение ПИБ в КН]]*10)/100)*0.95) -> 50.0555 | AC23: 0 | AD23: 0
E24: =IFERROR(IF(W24>4,LARGE(H24:V24,1),""),"") ->  | F24: =IFERROR(IF(X24>4,SMALL(H24:V24,1),""),"") ->  | G24: =ROW()-ROW(Расчет[[#Headers],[№]]) -> 11 | H24: 38 | J24: 40 | K24: 36 | L24: 36 | M24: 42 | O24: 40 | R24: 36 | S24: 36 | T24: 38 | U24: 40 | W24: =IFERROR(MAX(H24:V24)-AVERAGE(H24:V24),"") -> 3.8 | X24: =IFERROR(AVERAGE(H24:V24)-MIN(H24:V24),"") -> 2.2 | Y24: =IFERROR(AVERAGE(H24:V24),"") -> 38.2 | Z24: =IF(Y24="","",IF(Y24<=$W$14,1,2)) -> 2 | AA24: 538.9 | AB24: =IF(Расчет[[#This Row],[Разрушающая нагрузга Пресс в КН Значение ПИБ в КН]]="","",((Расчет[[#This Row],[Разрушающая нагрузга Пресс в КН Значение ПИБ в КН]]*10)/100)*0.95) -> 51.1955 | AC24: =IFERROR($AL$16*Y24+($AK$18),"") -> 0 | AD24: =IF(AG24="Отбраковывается","",IFERROR($AU$16*Y24+($AT$18),"")) -> 0 | AF24: 153
G25: =ROW()-ROW(Расчет[[#Headers],[№]]) -> 12 | H25: 36 | I25: 38 | J25: 34 | K25: 34 | L25: 34 | P25: 34 | Q25: 38 | R25: 32 | S25: 36 | T25: 36 | U25: 36 | W25: 2.727272727 | X25: 3.272727273 | Y25: 35.27272727 | Z25: 2 | AA25: 549.4 | AB25: =IF(Расчет[[#This Row],[Разрушающая нагрузга Пресс в КН Значение ПИБ в КН]]="","",((Расчет[[#This Row],[Разрушающая нагрузга Пресс в КН Значение ПИБ в КН]]*10)/100)*0.95) -> 52.193 | AC25: 0 | AD25: 0
G26: =ROW()-ROW(Расчет[[#Headers],[№]]) -> 13 | H26: 32 | J26: 34 | K26: 34 | L26: 32 | M26: 34 | N26: 32 | O26: 34 | P26: 34 | Q26: 38 | R26: 38 | S26: 34 | T26: 36 | U26: 34 | W26: 3.692307692 | X26: 2.307692308 | Y26: 34.30769231 | Z26: 2 | AA26: 361.8 | AB26: =IF(Расчет[[#This Row],[Разрушающая нагрузга Пресс в КН Значение ПИБ в КН]]="","",((Расчет[[#This Row],[Разрушающая нагрузга Пресс в КН Значение ПИБ в КН]]*10)/100)*0.95) -> 34.371 | AC26: 0 | AD26: 0
G27: =ROW()-ROW(Расчет[[#Headers],[№]]) -> 14 | H27: 32 | J27: 38 | K27: 32 | L27: 38 | M27: 34 | N27: 36 | O27: 34 | P27: 34 | Q27: 34 | R27: 36 | S27: 36 | T27: 34 | U27: 36 | W27: 3.076923077 | X27: 2.923076923 | Y27: 34.92307692 | Z27: 2 | AA27: 259.4 | AB27: =IF(Расчет[[#This Row],[Разрушающая нагрузга Пресс в КН Значение ПИБ в КН]]="","",((Расчет[[#This Row],[Разрушающая нагрузга Пресс в КН Значение ПИБ в КН]]*10)/100)*0.95) -> 24.643 | AC27: 0 | AD27: 0
G28: =ROW()-ROW(Расчет[[#Headers],[№]]) -> 15 | I28: 38 | J28: 36 | K28: 32 | L28: 38 | M28: 34 | N28: 38 | P28: 34 | Q28: 36 | R28: 32 | S28: 34 | U28: 38 | W28: 2.545454545 | X28: 3.454545455 | Y28: 35.45454545 | Z28: 2 | AA28: 386.3 | AB28: =IF(Расчет[[#This Row],[Разрушающая нагрузга Пресс в КН Значение ПИБ в КН]]="","",((Расчет[[#This Row],[Разрушающая нагрузга Пресс в КН Значение ПИБ в КН]]*10)/100)*0.95) -> 36.6985 | AC28: 0 | AD28: 0
G29: =ROW()-ROW(Расчет[[#Headers],[№]]) -> 16 | H29: 34 | K29: 38 | L29: 34 | M29: 34 | N29: 36 | O29: 36 | P29: 36 | Q29: 36 | R29: 32 | T29: 31 | U29: 32 | W29: 3.545454545 | X29: 3.454545455 | Y29: 34.45454545 | Z29: 2 | AA29: 438.3 | AB29: =IF(Расчет[[#This Row],[Разрушающая нагрузга Пресс в КН Значение ПИБ в КН]]="","",((Расчет[[#This Row],[Разрушающая нагрузга Пресс в КН Значение ПИБ в КН]]*10)/100)*0.95) -> 41.6385 | AC29: 0 | AD29: 0
G30: =ROW()-ROW(Расчет[[#Headers],[№]]) -> 17 | H30: 38 | I30: 34 | J30: 40 | K30: 38 | L30: 36 | M30: 38 | N30: 40 | O30: 40 | P30: 38 | Q30: 36 | R30: 38 | S30: 38 | T30: 36 | U30: 38 | W30: 2.285714286 | X30: 3.714285714 | Y30: 37.71428571 | Z30: 2 | AA30: 462.8 | AB30: =IF(Расчет[[#This Row],[Разрушающая нагрузга Пресс в КН Значение ПИБ в КН]]="","",((Расчет[[#This Row],[Разрушающая нагрузга Пресс в КН Значение ПИБ в КН]]*10)/100)*0.95) -> 43.966 | AC30: 0 | AD30: 0
G31: =ROW()-ROW(Расчет[[#Headers],[№]]) -> 18 | H31: 34 | I31: 34 | J31: 38 | K31: 40 | L31: 34 | M31: 34 | N31: 40 | O31: 36 | P31: 34 | Q31: 34 | R31: 38 | S31: 34 | T31: 38 | U31: 36 | W31: 4 | X31: 2 | Y31: 36 | Z31: 2 | AA31: 390.8 | AB31: =IF(Расчет[[#This Row],[Разрушающая нагрузга Пресс в КН Значение ПИБ в КН]]="","",((Расчет[[#This Row],[Разрушающая нагрузга Пресс в КН Значение ПИБ в КН]]*10)/100)*0.95) -> 37.126 | AC31: 0 | AD31: 0
G32: =ROW()-ROW(Расчет[[#Headers],[№]]) -> 19 | H32: 33 | I32: 32 | J32: 35 | K32: 34 | L32: 35 | M32: 36 | N32: 34 | O32: 36 | P32: 37 | Q32: 33 | S32: 33 | T32: 34 | U32: 34 | W32: 2.692307692 | X32: 2.307692308 | Y32: 34.30769231 | Z32: 2 | AA32: 444.7 | AB32: =IF(Расчет[[#This Row],[Разрушающая нагрузга Пресс в КН Значение ПИБ в КН]]="","",((Расчет[[#This Row],[Разрушающая нагрузга Пресс в КН Значение ПИБ в КН]]*10)/100)*0.95) -> 42.2465 | AC32: 0 | AD32: 0
G33: =ROW()-ROW(Расчет[[#Headers],[№]]) -> 20 | H33: 34 | I33: 35 | J33: 33 | K33: 32 | L33: 34 | M33: 33 | N33: 36 | O33: 34 | P33: 37 | Q33: 33 | S33: 35 | T33: 33 | U33: 32 | W33: 3.076923077 | X33: 1.923076923 | Y33: 33.92307692 | Z33: 2 | AA33: 436.4 | AB33: =IF(Расчет[[#This Row],[Разрушающая нагрузга Пресс в КН Значение ПИБ в КН]]="","",((Расчет[[#This Row],[Разрушающая нагрузга Пресс в КН Значение ПИБ в КН]]*10)/100)*0.95) -> 41.458 | AC33: 0 | AD33: 0
G34: =ROW()-ROW(Расчет[[#Headers],[№]]) -> 21 | H34: 34 | I34: 33 | J34: 34 | K34: 34 | L34: 33 | M34: 33 | O34: 32 | P34: 36 | Q34: 32 | S34: 32 | T34: 35 | W34: 2.545454545 | X34: 1.454545455 | Y34: 33.45454545 | Z34: 2 | AA34: 428.2 | AB34: =IF(Расчет[[#This Row],[Разрушающая нагрузга Пресс в КН Значение ПИБ в КН]]="","",((Расчет[[#This Row],[Разрушающая нагрузга Пресс в КН Значение ПИБ в КН]]*10)/100)*0.95) -> 40.679 | AC34: 0 | AD34: 0
G35: =ROW()-ROW(Расчет[[#Headers],[№]]) -> 22 | H35: 38 | I35: 36 | J35: 38 | K35: 34 | L35: 32 | M35: 34 | N35: 34 | O35: 32 | P35: 36 | Q35: 38 | R35: 36 | T35: 36 | U35: 34 | W35: 2.769230769 | X35: 3.230769231 | Y35: 35.23076923 | Z35: 2 | AA35: 293.4 | AB35: =IF(Расчет[[#This Row],[Разрушающая нагрузга Пресс в КН Значение ПИБ в КН]]="","",((Расчет[[#This Row],[Разрушающая нагрузга Пресс в КН Значение ПИБ в КН]]*10)/100)*0.95) -> 27.873 | AC35: 0 | AD35: 0
G36: =ROW()-ROW(Расчет[[#Headers],[№]]) -> 23 | H36: 36 | J36: 34 | L36: 36 | M36: 34 | N36: 36 | O36: 32 | P36: 34 | Q36: 34 | R36: 32 | S36: 34 | U36: 36 | W36: 1.636363636 | X36: 2.363636364 | Y36: 34.36363636 | Z36: 2 | AA36: 320.6 | AB36: =IF(Расчет[[#This Row],[Разрушающая нагрузга Пресс в КН Значение ПИБ в КН]]="","",((Расчет[[#This Row],[Разрушающая нагрузга Пресс в КН Значение ПИБ в КН]]*10)/100)*0.95) -> 30.457 | AC36: 0 | AD36: 0
G37: =ROW()-ROW(Расчет[[#Headers],[№]]) -> 24 | I37: 36 | J37: 34 | K37: 38 | L37: 32 | M37: 38 | N37: 33 | O37: 32 | P37: 34 | Q37: 38 | R37: 31 | S37: 38 | U37: 36 | W37: 3 | X37: 4 | Y37: 35 | Z37: 2 | AA37: 293.9 | AB37: =IF(Расчет[[#This Row],[Разрушающая нагрузга Пресс в КН Значение ПИБ в КН]]="","",((Расчет[[#This Row],[Разрушающая нагрузга Пресс в КН Значение ПИБ в КН]]*10)/100)*0.95) -> 27.9205 | AC37: 0 | AD37: 0
G38: =ROW()-ROW(Расчет[[#Headers],[№]]) -> 25 | H38: 36 | I38: 38 | J38: 39 | K38: 39 | L38: 37 | M38: 39 | N38: 42 | O38: 38 | P38: 41 | Q38: 39 | S38: 42 | T38: 41 | U38: 39 | W38: 2.769230769 | X38: 3.230769231 | Y38: 39.23076923 | Z38: 2 | AA38: 475.9 | AB38: =IF(Расчет[[#This Row],[Разрушающая нагрузга Пресс в КН Значение ПИБ в КН]]="","",((Расчет[[#This Row],[Разрушающая нагрузга Пресс в КН Значение ПИБ в КН]]*10)/100)*0.95) -> 45.2105 | AC38: 0 | AD38: 0
G39: =ROW()-ROW(Расчет[[#Headers],[№]]) -> 26 | H39: 33 | I39: 32 | J39: 34 | L39: 36 | M39: 32 | O39: 37 | P39: 37 | Q39: 38 | R39: 37 | S39: 32 | T39: 35 | W39: 3.181818182 | X39: 2.818181818 | Y39: 34.81818182 | Z39: 2 | AA39: 271.3 | AB39: =IF(Расчет[[#This Row],[Разрушающая нагрузга Пресс в КН Значение ПИБ в КН]]="","",((Расчет[[#This Row],[Разрушающая нагрузга Пресс в КН Значение ПИБ в КН]]*10)/100)*0.95) -> 25.7735 | AC39: 0 | AD39: 0
G40: =ROW()-ROW(Расчет[[#Headers],[№]]) -> 27 | H40: 52 | J40: 51 | L40: 51 | M40: 54 | N40: 50 | O40: 47 | Q40: 50 | S40: 49 | T40: 53 | U40: 48 | W40: 3.5 | X40: 3.5 | Y40: 50.5 | Z40: 2 | AA40: 559.6 | AB40: =IF(Расчет[[#This Row],[Разрушающая нагрузга Пресс в КН Значение ПИБ в КН]]="","",((Расчет[[#This Row],[Разрушающая нагрузга Пресс в КН Значение ПИБ в КН]]*10)/100)*0.95) -> 53.162 | AC40: 0 | AD40: 0
G41: =ROW()-ROW(Расчет[[#Headers],[№]]) -> 28 | I41: 33 | K41: 32 | M41: 26 | N41: 28 | O41: 31 | Q41: 26 | S41: 32 | T41: 30 | U41: 32 | W41: 3 | X41: 4 | Y41: 30 | Z41: 2 | AA41: 305.4 | AB41: =IF(Расчет[[#This Row],[Разрушающая нагрузга Пресс в КН Значение ПИБ в КН]]="","",((Расчет[[#This Row],[Разрушающая нагрузга Пресс в КН Значение ПИБ в КН]]*10)/100)*0.95) -> 29.013 | AC41: 0 | AD41: 0
G42: =ROW()-ROW(Расчет[[#Headers],[№]]) -> 29 | H42: 33 | I42: 33 | J42: 30 | L42: 32 | M42: 35 | N42: 33 | O42: 37 | P42: 33 | Q42: 31 | U42: 37 | W42: 3.6 | X42: 3.4 | Y42: 33.4 | Z42: 2 | AA42: 319.3 | AB42: =IF(Расчет[[#This Row],[Разрушающая нагрузга Пресс в КН Значение ПИБ в КН]]="","",((Расчет[[#This Row],[Разрушающая нагрузга Пресс в КН Значение ПИБ в КН]]*10)/100)*0.95) -> 30.3335 | AC42: 0 | AD42: 0
G43: =ROW()-ROW(Расчет[[#Headers],[№]]) -> 30 | H43: 36 | I43: 42 | J43: 42 | K43: 43 | L43: 39 | M43: 42 | N43: 37 | O43: 39 | P43: 37 | R43: 40 | S43: 39 | T43: 41 | U43: 43 | W43: 3 | X43: 4 | Y43: 40 | Z43: 2 | AA43: 364.1 | AB43: =IF(Расчет[[#This Row],[Разрушающая нагрузга Пресс в КН Значение ПИБ в КН]]="","",((Расчет[[#This Row],[Разрушающая нагрузга Пресс в КН Значение ПИБ в КН]]*10)/100)*0.95) -> 34.5895 | AC43: 0 | AD43: 0
G44: =ROW()-ROW(Расчет[[#Headers],[№]]) -> 31 | H44: 39 | I44: 40 | J44: 42 | K44: 38 | L44: 38 | M44: 38 | N44: 42 | O44: 39 | P44: 40 | Q44: 42 | R44: 38 | T44: 39 | U44: 41 | W44: 2.307692308 | X44: 1.692307692 | Y44: 39.69230769 | Z44: 2 | AA44: 474.7 | AB44: =IF(Расчет[[#This Row],[Разрушающая нагрузга Пресс в КН Значение ПИБ в КН]]="","",((Расчет[[#This Row],[Разрушающая нагрузга Пресс в КН Значение ПИБ в КН]]*10)/100)*0.95) -> 45.0965 | AC44: 0 | AD44: 0
G45: =ROW()-ROW(Расчет[[#Headers],[№]]) -> 32 | I45: 40 | J45: 40 | K45: 39 | L45: 41 | M45: 38 | O45: 38 | P45: 39 | Q45: 38 | R45: 40 | S45: 38 | T45: 39 | U45: 41 | W45: 1.75 | X45: 1.25 | Y45: 39.25 | Z45: 2 | AA45: 454.9 | AB45: =IF(Расчет[[#This Row],[Разрушающая нагрузга Пресс в КН Значение ПИБ в КН]]="","",((Расчет[[#This Row],[Разрушающая нагрузга Пресс в КН Значение ПИБ в КН]]*10)/100)*0.95) -> 43.2155 | AC45: 0 | AD45: 0
G46: =ROW()-ROW(Расчет[[#Headers],[№]]) -> 33 | H46: 55 | K46: 48 | W46: 3.5 | X46: 3.5 | Y46: 51.5 | Z46: 2 | AB46: =IF(Расчет[[#This Row],[Разрушающая нагрузга Пресс в КН Значение ПИБ в КН]]="","",((Расчет[[#This Row],[Разрушающая нагрузга Пресс в КН Значение ПИБ в КН]]*10)/100)*0.95) ->  | AC46: =IFERROR($AL$16*Y46+($AK$18),"") -> 0 | AD46: =IF(AG46="Отбраковывается","",IFERROR($AU$16*Y46+($AT$18),"")) -> 0

Sheet Лист2
A25: Приложение
A26: Наименьшее значение для отбраковки | B26: Наибольшее значение для отбраковки | C26: № | D26: 1 | E26: 2 | F26: 3 | G26: 4 | H26: 5 | I26: 6 | J26: 7 | K26: 8 | L26: 9 | M26: 10 | N26: 11 | O26: 12 | P26: 13 | Q26: 14 | R26: 15 | S26: max | T26: min | U26: Среднее значение по склерометру | V26: Разделение на группы | W26: Разрушающая нагрузга Пресс в КН Значение ПИБ в КН | X26: Показания Riф (Мпа) | Y26: До отбраковки RiH | Z26: После отбраковки RiH | AA26: До отбраковки RiH-Riф/Sт | AB26: После отбраковки RiH-Riф/Sт | AC26: Примечание
C27: 1 | D27: 32 | E27: 34 | F27: 32 | G27: 32 | H27: 32 | I27: 30 | J27: 32 | K27: 36 | M27: 32 | N27: 32 | O27: 34 | P27: 34 | Q27: 36 | S27: 3.076923077 | T27: 2.923076923 | U27: 32.92307692 | V27: 2 | W27: 361.9 | X27: 34.3805 | Y27: 0 | Z27: 0
C28: 2 | D28: 30 | E28: 34 | F28: 32 | G28: 32 | H28: 32 | I28: 32 | J28: 34 | K28: 30 | L28: 34 | M28: 36 | N28: 32 | O28: 32 | P28: 30 | Q28: 34 | S28: 3.571428571 | T28: 2.428571429 | U28: 32.42857143 | V28: 2 | W28: 397.2 | X28: 37.734 | Y28: 0 | Z28: 0
C29: 3 | D29: 32 | E29: 32 | F29: 32 | G29: 36 | H29: 32 | I29: 34 | J29: 30 | K29: 34 | L29: 32 | M29: 30 | N29: 32 | O29: 32 | P29: 32 | Q29: 32 | S29: 3.714285714 | T29: 2.285714286 | U29: 32.28571429 | V29: 2 | W29: 357.2 | X29: 33.934 | Y29: 0 | Z29: 0
C30: 4 | D30: 32 | E30: 30 | F30: 28 | G30: 28 | H30: 28 | I30: 34 | J30: 32 | K30: 32 | L30: 30 | M30: 32 | N30: 34 | O30: 34 | Q30: 30 | S30: 2.923076923 | T30: 3.076923077 | U30: 31.07692308 | V30: 2 | W30: 398.2 | X30: 37.829 | Y30: 0 | Z30: 0
C31: 5 | D31: 30 | H31: 30 | I31: 30 | J31: 34 | K31: 28 | L31: 30 | M31: 30 | N31: 32 | O31: 32 | P31: 30 | Q31: 28 | S31: 3.636363636 | T31: 2.363636364 | U31: 30.36363636 | V31: 2 | W31: 389 | X31: 36.955 | Y31: 0 | Z31: 0
C32: 6 | D32: 34 | E32: 32 | F32: 32 | G32: 32 | H32: 32 | J32: 36 | K32: 38 | L32: 32 | M32: 36 | N32: 36 | O32: 32 | P32: 34 | Q32: 36 | S32: 4 | T32: 2 | U32: 34 | V32: 2 | W32: 356.1 | X32: 33.8295 | Y32: 0 | Z32: 0
C33: 7 | D33: 38 | E33: 34 | G33: 40 | H33: 38 | I33: 36 | J33: 38 | K33: 38 | L33: 36 | M33: 36 | N33: 38 | O33: 38 | P33: 38 | S33: 2.666666667 | T33: 3.333333333 | U33: 37.33333333 | V33: 2 | W33: 489.7 | X33: 46.5215 | Y33: 0 | Z33: 0
C34: 8 | E34: 38 | F34: 44 | H34: 38 | J34: 44 | K34: 42 | L34: 40 | N34: 36 | P34: 36 | Q34: 42 | S34: 4 | T34: 4 | U34: 40 | V34: 2 | W34: 421.2 | X34: 40.014 | Y34: 0 | Z34: 0
C35: 9 | E35: 34 | G35: 36 | H35: 36 | I35: 40 | J35: 38 | K35: 34 | L35: 36 | N35: 38 | O35: 40 | P35: 36 | S35: 3.2 | T35: 2.8 | U35: 36.8 | V35: 2 | W35: 459.2 | X35: 43.624 | Y35: 0 | Z35: 0
C36: 10 | D36: 38 | E36: 36 | F36: 36 | G36: 34 | H36: 34 | I36: 36 | K36: 38 | L36: 34 | M36: 34 | N36: 38 | O36: 38 | P36: 38 | Q36: 34 | S36: 2 | T36: 2 | U36: 36 | V36: 2 | W36: 526.9 | X36: 50.0555 | Y36: 0 | Z36: 0
C37: 11 | D37: 38 | F37: 40 | G37: 36 | H37: 36 | I37: 42 | K37: 40 | N37: 36 | O37: 36 | P37: 38 | Q37: 40 | S37: 3.8 | T37: 2.2 | U37: 38.2 | V37: 2 | W37: 538.9 | X37: 51.1955 | Y37: 0 | Z37: 0
C38: 12 | D38: 36 | E38: 38 | F38: 34 | G38: 34 | H38: 34 | L38: 34 | M38: 38 | N38: 32 | O38: 36 | P38: 36 | Q38: 36 | S38: 2.727272727 | T38: 3.272727273 | U38: 35.27272727 | V38: 2 | W38: 549.4 | X38: 52.193 | Y38: 0 | Z38: 0
C39: 13 | D39: 32 | F39: 34 | G39: 34 | H39: 32 | I39: 34 | J39: 32 | K39: 34 | L39: 34 | M39: 38 | N39: 38 | O39: 34 | P39: 36 | Q39: 34 | S39: 3.692307692 | T39: 2.307692308 | U39: 34.30769231 | V39: 2 | W39: 361.8 | X39: 34.371 | Y39: 0 | Z39: 0
C40: 14 | D40: 32 | F40: 38 | G40: 32 | H40: 38 | I40: 34 | J40: 36 | K40: 34 | L40: 34 | M40: 34 | N40: 36 | O40: 36 | P40: 34 | Q40: 36 | S40: 3.076923077 | T40: 2.923076923 | U40: 34.92307692 | V40: 2 | W40: 259.4 | X40: 24.643 | Y40: 0 | Z40: 0
C41: 15 | E41: 38 | F41: 36 | G41: 32 | H41: 38 | I41: 34 | J41: 38 | L41: 34 | M41: 36 | N41: 32 | O41: 34 | Q41: 38 | S41: 2.545454545 | T41: 3.454545455 | U41: 35.45454545 | V41: 2 | W41: 386.3 | X41: 36.6985 | Y41: 0 | Z41: 0
C42: 16 | D42: 34 | G42: 38 | H42: 34 | I42: 34 | J42: 36 | K42: 36 | L42: 36 | M42: 36 | N42: 32 | P42: 31 | Q42: 32 | S42: 3.545454545 | T42: 3.454545455 | U42: 34.45454545 | V42: 2 | W42: 438.3 | X42: 41.6385 | Y42: 0 | Z42: 0
C43: 17 | D43: 38 | E43: 34 | F43: 40 | G43: 38 | H43: 36 | I43: 38 | J43: 40 | K43: 40 | L43: 38 | M43: 36 | N43: 38 | O43: 38 | P43: 36 | Q43: 38 | S43: 2.285714286 | T43: 3.714285714 | U43: 37.71428571 | V43: 2 | W43: 462.8 | X43: 43.966 | Y43: 0 | Z43: 0
C44: 18 | D44: 34 | E44: 34 | F44: 38 | G44: 40 | H44: 34 | I44: 34 | J44: 40 | K44: 36 | L44: 34 | M44: 34 | N44: 38 | O44: 34 | P44: 38 | Q44: 36 | S44: 4 | T44: 2 | U44: 36 | V44: 2 | W44: 390.8 | X44: 37.126 | Y44: 0 | Z44: 0
C45: 19 | D45: 33 | E45: 32 | F45: 35 | G45: 34 | H45: 35 | I45: 36 | J45: 34 | K45: 36 | L45: 37 | M45: 33 | O45: 33 | P45: 34 | Q45: 34 | S45: 2.692307692 | T45: 2.307692308 | U45: 34.30769231 | V45: 2 | W45: 444.7 | X45: 42.2465 | Y45: 0 | Z45: 0
C46: 20 | D46: 34 | E46: 35 | F46: 33 | G46: 32 | H46: 34 | I46: 33 | J46: 36 | K46: 34 | L46: 37 | M46: 33 | O46: 35 | P46: 33 | Q46: 32 | S46: 3.076923077 | T46: 1.923076923 | U46: 33.92307692 | V46: 2 | W46: 436.4 | X46: 41.458 | Y46: 0 | Z46: 0
C47: 21 | D47: 34 | E47: 33 | F47: 34 | G47: 34 | H47: 33 | I47: 33 | K47: 32 | L47: 36 | M47: 32 | O47: 32 | P47: 35 | S47: 2.545454545 | T47: 1.454545455 | U47: 33.45454545 | V47: 2 | W47: 428.2 | X47: 40.679 | Y47: 0 | Z47: 0
C48: 22 | D48: 38 | E48: 36 | F48: 38 | G48: 34 | H48: 32 | I48: 34 | J48: 34 | K48: 32 | L48: 36 | M48: 38 | N48: 36 | P48: 36 | Q48: 34 | S48: 2.769230769 | T48: 3.230769231 | U48: 35.23076923 | V48: 2 | W48: 293.4 | X48: 27.873 | Y48: 0 | Z48: 0
C49: 23 | D49: 36 | F49: 34 | H49: 36 | I49: 34 | J49: 36 | K49: 32 | L49: 34 | M49: 34 | N49: 32 | O49: 34 | Q49: 36 | S49: 1.636363636 | T49: 2.363636364 | U49: 34.36363636 | V49: 2 | W49: 320.6 | X49: 30.457 | Y49: 0 | Z49: 0
C50: 24 | E50: 36 | F50: 34 | G50: 38 | H50: 32 | I50: 38 | J50: 33 | K50: 32 | L50: 34 | M50: 38 | N50: 31 | O50: 38 | Q50: 36 | S50: 3 | T50: 4 | U50: 35 | V50: 2 | W50: 293.9 | X50: 27.9205 | Y50: 0 | Z50: 0
C51: 25 | D51: 36 | E51: 38 | F51: 39 | G51: 39 | H51: 37 | I51: 39 | J51: 42 | K51: 38 | L51: 41 | M51: 39 | O51: 42 | P51: 41 | Q51: 39 | S51: 2.769230769 | T51: 3.230769231 | U51: 39.23076923 | V51: 2 | W51: 475.9 | X51: 45.2105 | Y51: 0 | Z51: 0
C52: 26 | D52: 33 | E52: 32 | F52: 34 | H52: 36 | I52: 32 | K52: 37 | L52: 37 | M52: 38 | N52: 37 | O52: 32 | P52: 35 | S52: 3.181818182 | T52: 2.818181818 | U52: 34.81818182 | V52: 2 | W52: 271.3 | X52: 25.7735 | Y52: 0 | Z52: 0
C53: 27 | D53: 52 | F53: 51 | H53: 51 | I53: 54 | J53: 50 | K53: 47 | M53: 50 | O53: 49 | P53: 53 | Q53: 48 | S53: 3.5 | T53: 3.5 | U53: 50.5 | V53: 2 | W53: 559.6 | X53: 53.162 | Y53: 0 | Z53: 0
C54: 28 | E54: 33 | G54: 32 | I54: 26 | J54: 28 | K54: 31 | M54: 26 | O54: 32 | P54: 30 | Q54: 32 | S54: 3 | T54: 4 | U54: 30 | V54: 2 | W54: 305.4 | X54: 29.013 | Y54: 0 | Z54: 0
C55: 29 | D55: 33 | E55: 33 | F55: 30 | H55: 32 | I55: 35 | J55: 33 | K55: 37 | L55: 33 | M55: 31 | Q55: 37 | S55: 3.6 | T55: 3.4 | U55: 33.4 | V55: 2 | W55: 319.3 | X55: 30.3335 | Y55: 0 | Z55: 0
C56: 30 | D56: 36 | E56: 42 | F56: 42 | G56: 43 | H56: 39 | I56: 42 | J56: 37 | K56: 39 | L56: 37 | N56: 40 | O56: 39 | P56: 41 | Q56: 43 | S56: 3 | T56: 4 | U56: 40 | V56: 2 | W56: 364.1 | X56: 34.5895 | Y56: 0 | Z56: 0
C57: 31 | D57: 39 | E57: 40 | F57: 42 | G57: 38 | H57: 38 | I57: 38 | J57: 42 | K57: 39 | L57: 40 | M57: 42 | N57: 38 | P57: 39 | Q57: 41 | S57: 2.307692308 | T57: 1.692307692 | U57: 39.69230769 | V57: 2 | W57: 474.7 | X57: 45.0965 | Y57: 0 | Z57: 0
C58: 32 | E58: 40 | F58: 40 | G58: 39 | H58: 41 | I58: 38 | K58: 38 | L58: 39 | M58: 38 | N58: 40 | O58: 38 | P58: 39 | Q58: 41 | S58: 1.75 | T58: 1.25 | U58: 39.25 | V58: 2 | W58: 454.9 | X58: 43.2155 | Y58: 0 | Z58: 0
C59: 33 | D59: 55 | G59: 48 | S59: 3.5 | T59: 3.5 | U59: 51.5 | V59: 2 | Y59: 0 | Z59: 0
A62: Заключение
